bitfinex/quotes_BTCUSD_20251104
["timestamp","ask_amount","ask_price","bid_price","bid_amount"]
[1762224462375,2.34231848,106760.0,106750.0,9.028e-05]
[1762224462586,1.10740218,106740.0,106730.0,0.0002]
[1762224462792,1.79997714,106740.0,106730.0,0.00089481]
[1762224462992,1.82351714,106740.0,106730.0,0.00089481]
[1762224463406,1.85453988,106740.0,106730.0,0.00089481]
[1762224463608,1.95011594,106740.0,106730.0,0.00089481]
[1762224464457,1.79238233,106740.0,106730.0,0.00089481]
[1762224464660,1.79238233,106740.0,106730.0,0.00389481]
[1762224464856,1.79238233,106740.0,106730.0,0.00589481]
[1762224465311,2.13238233,106740.0,106730.0,0.00589481]
[1762224465520,2.16856461,106740.0,106730.0,0.00589481]
[1762224465651,2.18598726,106740.0,106730.0,0.00589481]
[1762224466178,1.14460201,106730.0,106720.0,0.0002]
[1762224466390,1.87679921,106730.0,106720.0,0.0002]
[1762224466589,1.87679921,106730.0,106720.0,0.00043165]
[1762224467251,1.87679921,106730.0,106650.0,0.00028]
[1762224467252,0.18745899,106690.0,106650.0,0.00028]
[1762224467576,0.18745899,106690.0,106650.0,0.00952424]
[1762224467577,1.61953406,106660.0,106650.0,0.00952424]
[1762224467815,1.12261271,106660.0,106650.0,0.00952424]
[1762224468041,0.941861,106660.0,106650.0,0.00076218]
[1762224468261,1.11330271,106660.0,106650.0,0.05446491]
[1762224468509,0.00676,106660.0,106650.0,0.24199421]
[1762224468723,0.919031,106660.0,106650.0,0.24199421]
[1762224469173,0.919031,106660.0,106650.0,0.24399421]
[1762224469677,0.00812,106670.0,106660.0,0.18751171]
[1762224469924,0.09214185,106670.0,106660.0,0.20291171]
[1762224470120,0.27963599,106670.0,106660.0,0.0154]
[1762224470232,0.27151599,106670.0,106660.0,0.03982]
[1762224470434,0.00812,106680.0,106670.0,0.18749414]
[1762224470647,0.18747656,106680.0,106670.0,0.03982]
[1762224471044,0.919031,106680.0,106670.0,0.03982]
[1762224471620,0.919031,106680.0,106670.0,0.22731414]
[1762224471753,0.919031,106680.0,106670.0,0.22931414]
[1762224471955,0.919031,106680.0,106670.0,0.23331414]
[1762224472364,0.29698707,106690.0,106670.0,0.23331414]
[1762224472565,0.29698674,106690.0,106680.0,0.0154]
[1762224472916,0.10952775,106690.0,106680.0,0.0154]
[1762224473075,0.10952775,106690.0,106680.0,0.20287656]
[1762224473280,0.29698674,106690.0,106680.0,0.0154]
[1762224474289,0.29698674,106690.0,106680.0,0.0174]
[1762224474515,0.09078185,106690.0,106680.0,0.0174]
[1762224474839,0.09078185,106690.0,106680.0,0.22929656]
[1762224475179,0.70662031,106700.0,106680.0,0.22929656]
[1762224475415,0.919031,106690.0,106680.0,0.18947656]
[1762224475856,0.919031,106690.0,106680.0,0.24155656]
[1762224476021,0.18744142,106700.0,106690.0,0.18745899]
[1762224476223,0.23510572,106700.0,106690.0,0.03982]
[1762224476569,0.18745899,106690.0,106670.0,0.01226]
[1762224476766,0.18745899,106690.0,106670.0,0.03668]
[1762224476767,0.78250481,106680.0,106670.0,0.03668]
[1762224476961,1.19051184,106690.0,106680.0,0.0154]
[1762224477128,1.19051184,106690.0,106680.0,0.01588218]
[1762224477333,1.2850879,106690.0,106680.0,0.04030218]
[1762224478227,1.2918479,106690.0,106680.0,0.01788218]
[1762224478654,1.70679543,106690.0,106680.0,0.01788218]
[1762224478888,1.72186543,106690.0,106680.0,0.00248218]
[1762224479311,1.72286543,106690.0,106680.0,0.00248218]
[1762224479750,1.72286543,106690.0,106680.0,0.01788218]
[1762224479972,0.18745899,106690.0,106680.0,0.04630218]
[1762224480197,0.27148084,106690.0,106680.0,0.04630218]
[1762224480442,0.18744142,106700.0,106680.0,0.25252639]
[1762224480678,0.52744142,106700.0,106690.0,0.00069519]
[1762224480894,0.18744142,106700.0,106690.0,0.00069519]
[1762224481102,0.20251142,106700.0,106690.0,0.00069519]
[1762224481345,0.20251142,106700.0,106690.0,0.18815418]
[1762224481499,0.18744142,106700.0,106690.0,0.20355418]
[1762224481914,0.18744142,106700.0,106690.0,0.22797418]
[1762224482123,0.919031,106700.0,106690.0,0.22797418]
[1762224482348,0.18744142,106700.0,106690.0,0.04051519]
[1762224482552,0.18744142,106700.0,106690.0,0.01609519]
[1762224482779,1.72710983,106700.0,106690.0,0.00069519]
[1762224483000,1.75084983,106700.0,106690.0,0.00069519]
[1762224483219,1.75084983,106700.0,106690.0,0.00269519]
[1762224483427,1.75184983,106700.0,106690.0,0.00269519]
[1762224484131,1.72710983,106700.0,106690.0,0.00269519]
[1762224484559,1.61746377,106700.0,106690.0,0.01809519]
[1762224486227,1.63253377,106700.0,106690.0,0.00269519]
[1762224487420,1.61746377,106700.0,106690.0,0.04251519]
[1762224487619,0.69843277,106700.0,106690.0,0.04251519]
[1762224487823,0.18744142,106700.0,106690.0,0.04251519]
[1762224488022,0.919031,106700.0,106690.0,0.22997418]
[1762224488223,1.10647242,106700.0,106690.0,0.22997418]
[1762224488402,0.18744142,106700.0,106690.0,0.22997418]
[1762224488632,0.18744142,106700.0,106690.0,0.04251519]
[1762224488857,0.18744142,106700.0,106690.0,0.22997418]
[1762224489207,1.10647242,106700.0,106690.0,0.22997418]
[1762224489406,0.18744142,106700.0,106690.0,0.22997418]
[1762224489827,0.18744142,106700.0,106690.0,0.04251519]
[1762224490673,0.919031,106700.0,106690.0,0.22997418]
[1762224491229,0.27147482,106710.0,106690.0,0.22997418]
[1762224491359,0.36605088,106710.0,106700.0,0.03982]
[1762224491558,0.27147482,106710.0,106700.0,0.22726142]
[1762224491827,0.27147482,106710.0,106700.0,0.03982]
[1762224492202,1.70149717,106710.0,106700.0,0.03982]
[1762224492368,1.70149717,106710.0,106700.0,0.0154]
[1762224492866,0.18744142,106700.0,106690.0,0.02442]
[1762224493080,0.18744142,106700.0,106690.0,0.21187899]
[1762224493295,0.18744142,106700.0,106690.0,0.22727899]
[1762224493540,0.18744142,106700.0,106690.0,0.03982]
[1762224493906,0.69843277,106700.0,106690.0,0.22727899]
[1762224494278,1.10647242,106700.0,106690.0,0.22727899]
[1762224494488,0.18744142,106700.0,106690.0,0.22727899]
[1762224494645,0.18744142,106700.0,106690.0,0.22927899]
[1762224495227,0.18744142,106700.0,106690.0,0.04582]
[1762224495848,0.20456803,106700.0,106690.0,0.23327899]
[1762224496042,0.20456803,106700.0,106690.0,0.04582]
[1762224496386,0.18744142,106700.0,106690.0,0.04582]
[1762224496520,0.69843277,106700.0,106690.0,0.04582]
[1762224497916,0.18744142,106700.0,106690.0,0.04582]
[1762224498057,0.69843277,106700.0,106690.0,0.006]
[1762224498260,0.69843277,106700.0,106690.0,0.00669519]
[1762224498470,1.65590377,106700.0,106690.0,0.00669519]
[1762224498676,1.65690377,106700.0,106690.0,0.00669519]
[1762224499083,1.99690377,106700.0,106690.0,0.00669519]
[1762224499290,2.01434978,106700.0,106690.0,0.00669519]
[1762224499493,2.01434978,106700.0,106690.0,0.00269519]
[1762224499698,2.10892584,106700.0,106690.0,0.00469519]
[1762224500112,2.13728084,106700.0,106690.0,0.00269519]
[1762224500321,2.10892584,106700.0,106690.0,0.00269519]
[1762224500531,2.10792584,106700.0,106690.0,0.00269519]
[1762224502387,1.59693449,106700.0,106690.0,0.00269519]
[1762224502591,2.10792584,106700.0,106690.0,0.00269519]
[1762224505249,2.11536584,106700.0,106690.0,0.00269519]
[1762224505720,1.60437449,106700.0,106690.0,0.00269519]
[1762224505922,2.11536584,106700.0,106690.0,0.00269519]
[1762224509014,1.73536983,106700.0,106690.0,0.00269519]
[1762224511794,1.75893983,106700.0,106690.0,0.00269519]
[1762224513409,1.75993983,106700.0,106690.0,0.00269519]
[1762224514045,1.55143799,106700.0,106690.0,0.00269519]
[1762224514261,1.75273941,106700.0,106690.0,0.00269519]
[1762224514515,1.62214208,106700.0,106690.0,0.00269519]
[1762224514952,2.00794913,106700.0,106690.0,0.00269519]
[1762224515397,2.38934315,106700.0,106690.0,0.00269519]
[1762224515598,2.39717043,106700.0,106690.0,1e-08]
[1762224515773,1.10331999,106690.0,106680.0,0.00048218]
[1762224515920,2.11623299,106690.0,106680.0,0.00048218]
[1762224516141,2.11623299,106690.0,106680.0,0.00071397]
[1762224516354,2.15241527,106690.0,106680.0,0.00071397]
[1762224516537,2.12406027,106690.0,106680.0,1e-08]
[1762224516763,0.18851171,106660.0,106650.0,0.00028]
[1762224516960,0.69964881,106660.0,106650.0,0.00028]
[1762224517368,1.65572481,106660.0,106650.0,0.00028]
[1762224517794,1.99672481,106660.0,106650.0,0.00028]
[1762224518347,1.99672481,106660.0,106650.0,0.2420593]
[1762224518348,0.00048196,106660.0,106650.0,0.2420593]
[1762224518584,0.00048196,106660.0,106650.0,0.5820593]
[1762224519195,0.00048196,106660.0,106650.0,0.5840593]
[1762224519397,0.00048196,106660.0,106650.0,0.5820593]
[1762224519541,0.00048196,106660.0,106650.0,0.69520182]
[1762224519743,0.08402185,106700.0,106690.0,0.18745899]
[1762224520058,0.01678783,106710.0,106700.0,0.18744142]
[1762224520279,0.00744,106710.0,106700.0,0.22576142]
[1762224520664,0.01700891,106710.0,106700.0,0.22576142]
[1762224520884,0.00744,106710.0,106700.0,0.22576142]
[1762224521121,0.66787709,106720.0,106710.0,0.18742385]
[1762224521324,1.54134407,106720.0,106710.0,0.18742385]
[1762224521497,1.55520407,106720.0,106710.0,0.18742385]
[1762224521707,1.36779611,106720.0,106710.0,0.19935385]
[1762224521911,1.35393611,106720.0,106710.0,0.23767385]
[1762224522299,1.43921891,106720.0,106710.0,0.23767385]
[1762224523093,1.44021891,106720.0,106710.0,0.23767385]
[1762224523395,1.6276252,106720.0,106710.0,0.23767385]
[1762224523629,1.6296252,106720.0,106710.0,0.23767385]
[1762224523835,1.6296252,106720.0,106710.0,0.05025]
[1762224523990,0.18743024,106710.0,106690.0,0.2318321]
[1762224524192,0.18743024,106710.0,106700.0,0.02298]
[1762224524396,0.56782426,106710.0,106700.0,0.01534]
[1762224524865,0.56782426,106710.0,106700.0,0.20278142]
[1762224525055,1.10351075,106720.0,106710.0,0.18742385]
[1762224525262,2.01737175,106720.0,106710.0,0.18742385]
[1762224525463,2.03123175,106720.0,106710.0,0.18742385]
[1762224525669,2.03023175,106720.0,106710.0,0.18742385]
[1762224525846,2.03023175,106720.0,106710.0,0.18842385]
[1762224526055,1.43245891,106720.0,106710.0,0.22838385]
[1762224526281,0.51859791,106720.0,106710.0,0.22838385]
[1762224526845,0.51859791,106720.0,106710.0,0.20489385]
[1762224527429,0.51859791,106720.0,106710.0,0.22838385]
[1762224528802,0.42402185,106720.0,106710.0,0.22838385]
[1762224529801,0.43338177,106720.0,106710.0,0.22838385]
[1762224530784,0.09338177,106720.0,106710.0,0.22838385]
[1762224530966,0.67504208,106720.0,106710.0,0.001]
[1762224531199,0.66118208,106720.0,106710.0,0.20489385]
[1762224531460,0.53570182,106730.0,106720.0,0.18740629]
[1762224531665,0.00155249,106730.0,106720.0,0.22736629]
[1762224532912,0.00355249,106730.0,106720.0,0.22736629]
[1762224533071,0.00355249,106730.0,106720.0,0.22836629]
[1762224533280,0.00155249,106730.0,106720.0,0.22736629]
[1762224533651,0.00155249,106730.0,106720.0,0.23036629]
[1762224534048,0.00155249,106730.0,106720.0,0.23436629]
[1762224534992,0.00155249,106730.0,106720.0,0.25198211]
[1762224537316,0.00155249,106730.0,106720.0,0.28816439]
[1762224537525,0.00155249,106730.0,106720.0,0.62816439]
[1762224537697,0.27855655,106770.0,106750.0,0.18734208]
[1762224537698,0.913861,106760.0,106750.0,0.18734208]
[1762224537896,1.10119708,106760.0,106750.0,0.18734208]
[1762224538127,0.18736176,106750.0,106730.0,0.23159359]
[1762224538323,0.65177763,106750.0,106730.0,0.20810359]
[1762224538529,0.65177763,106750.0,106740.0,0.03996]
[1762224538794,0.65177763,106750.0,106740.0,0.01647]
[1762224539137,0.913861,106750.0,106740.0,0.24606829]
[1762224539345,1.10121462,106750.0,106740.0,0.03996]
[1762224539551,0.18735362,106750.0,106740.0,0.03996]
[1762224539733,0.27137547,106750.0,106740.0,0.03996]
[1762224539939,0.65176949,106750.0,106740.0,0.03996]
[1762224540134,0.27137547,106750.0,106740.0,0.03996]
[1762224540341,0.08402185,106750.0,106740.0,0.22733118]
[1762224540758,1.30369187,106760.0,106750.0,0.18735362]
[1762224540967,1.20520999,106760.0,106750.0,0.23869362]
[1762224541767,1.11063393,106760.0,106750.0,0.23869362]
[1762224541963,1.11363393,106760.0,106750.0,0.23869362]
[1762224542171,0.003,106760.0,106750.0,0.23869362]
[1762224542594,0.19033608,106760.0,106750.0,0.05134]
[1762224542784,1.4984511,106760.0,106750.0,0.01138]
[1762224542993,0.18735362,106750.0,106740.0,0.03487]
[1762224543203,0.18737118,106740.0,106730.0,0.01138]
[1762224543405,1.4816262,106740.0,106730.0,0.01138]
[1762224543607,1.4816262,106740.0,106730.0,0.05134]
[1762224543813,0.913861,106740.0,106730.0,0.23872873]
[1762224544053,0.18737118,106740.0,106730.0,0.23872873]
[1762224544633,0.913861,106740.0,106730.0,0.23872873]
[1762224545443,1.10123218,106740.0,106730.0,0.23872873]
[1762224545693,0.18737118,106740.0,106730.0,0.24272873]
[1762224545881,0.18737118,106740.0,106730.0,0.24572873]
[1762224546016,0.65176954,106750.0,106730.0,0.24572873]
[1762224546218,1.56563054,106750.0,106740.0,0.03996]
[1762224546569,1.56563054,106750.0,106740.0,0.22733118]
[1762224546986,1.6602066,106750.0,106740.0,0.20384118]
[1762224547355,0.99788285,106750.0,106740.0,0.22733118]
[1762224548144,1.57949049,106750.0,106740.0,0.002]
[1762224549060,1.56563049,106750.0,106740.0,0.02047]
[1762224549278,1.56609363,106750.0,106740.0,0.23133118]
[1762224549448,1.66066969,106750.0,106740.0,0.23133118]
[1762224549651,1.37874001,106750.0,106740.0,0.23133118]
[1762224549858,1.18569961,106750.0,106740.0,0.23133118]
[1762224550185,0.99834599,106750.0,106740.0,0.23133118]
[1762224550414,1.18569961,106750.0,106740.0,0.23133118]
[1762224550645,1.18569961,106750.0,106740.0,0.04396]
[1762224550851,1.18569961,106750.0,106740.0,0.23133118]
[1762224551057,0.08448499,106750.0,106740.0,0.27434065]
[1762224551271,0.00046314,106750.0,106740.0,0.23133118]
[1762224556107,0.18781676,106750.0,106740.0,0.04396]
[1762224556310,1.56609363,106750.0,106740.0,0.02047]
[1762224556567,1.67452969,106750.0,106740.0,0.004]
[1762224556764,1.29413567,106750.0,106740.0,0.004]
[1762224556968,1.67452969,106750.0,106740.0,0.004]
[1762224558236,2.03710829,106750.0,106740.0,0.004]
[1762224558436,2.05654511,106750.0,106740.0,0.004]
[1762224559035,0.18738873,106730.0,106720.0,0.02406]
[1762224559239,1.66024166,106730.0,106720.0,0.02406]
[1762224559443,1.66024166,106730.0,106720.0,0.03915]
[1762224559813,1.18527158,106730.0,106720.0,0.03915]
[1762224560746,0.913861,106730.0,106720.0,0.24529691]
[1762224560914,0.913861,106730.0,106720.0,0.23055629]
[1762224561126,1.10124973,106730.0,106720.0,0.23055629]
[1762224561301,0.18738873,106730.0,106720.0,0.23055629]
[1762224561520,0.18738873,106730.0,106720.0,0.04315]
[1762224562168,0.18738873,106730.0,106720.0,0.06189062]
[1762224562688,0.18738873,106730.0,106720.0,0.24929691]
[1762224562924,0.18738873,106730.0,106720.0,0.04315]
[1762224563131,0.18738873,106730.0,106720.0,0.24583357]
[1762224563312,0.27141058,106730.0,106720.0,0.04315]
[1762224563833,0.18738622,106740.0,106720.0,0.23055629]
[1762224564060,0.18738873,106730.0,106720.0,0.02806]
[1762224564209,1.10124722,106740.0,106730.0,0.0269]
[1762224564384,1.10147881,106740.0,106730.0,0.0269]
[1762224565444,1.48187283,106740.0,106730.0,0.05096]
[1762224565654,1.57644889,106740.0,106730.0,0.05096]
[1762224565865,1.19605487,106740.0,106730.0,0.05096]
[1762224568070,1.57644889,106740.0,106730.0,0.05096]
[1762224568263,1.57644889,106740.0,106730.0,0.0269]
[1762224569950,0.18740629,106720.0,106710.0,0.01138]
[1762224570189,0.18740629,106720.0,106710.0,0.03422017]
[1762224570408,0.18740629,106720.0,106710.0,0.04985017]
[1762224570849,1.53766177,106720.0,106710.0,0.02710017]
[1762224571072,1.53766177,106720.0,106710.0,0.03110017]
[1762224571297,1.15726775,106720.0,106710.0,0.05585017]
[1762224571548,0.913861,106720.0,106710.0,0.05185017]
[1762224571747,0.913861,106720.0,106710.0,0.23927402]
[1762224571953,0.27817058,106730.0,106710.0,0.24127402]
[1762224572158,0.700199,106720.0,106710.0,0.20289402]
[1762224572379,0.27817058,106730.0,106720.0,0.20303629]
[1762224572587,0.27141058,106730.0,106720.0,0.01563]
[1762224572803,0.27141058,106730.0,106720.0,0.03838]
[1762224573465,1.3587636,106730.0,106720.0,0.01563]
[1762224573684,0.18740629,106720.0,106710.0,0.03422017]
[1762224574137,0.18740629,106720.0,106710.0,0.04985017]
[1762224574567,0.18740629,106720.0,106710.0,0.07565453]
[1762224574968,0.18740629,106720.0,106710.0,0.05185017]
[1762224575173,0.18740629,106720.0,106710.0,0.05385017]
[1762224575404,0.18740629,106720.0,106710.0,0.24127402]
[1762224575614,0.6585646,106730.0,106710.0,0.24127402]
[1762224575814,0.6585646,106730.0,106720.0,0.03838]
[1762224576091,0.27817058,106730.0,106720.0,0.03838]
[1762224576316,0.97836958,106730.0,106720.0,0.03838]
[1762224578460,0.97836958,106730.0,106710.0,9.017e-05]
[1762224578461,0.88760529,106720.0,106710.0,9.017e-05]
[1762224578702,1.92389051,106730.0,106720.0,0.01563]
[1762224578919,0.27141058,106730.0,106720.0,0.22578629]
[1762224579124,0.18738873,106730.0,106720.0,0.22578629]
[1762224579542,0.18738873,106730.0,106720.0,0.22778629]
[1762224579753,0.18738873,106730.0,106720.0,0.22978629]
[1762224579959,0.18738873,106730.0,106720.0,0.22578629]
[1762224580165,0.18738873,106730.0,106720.0,0.03838]
[1762224580378,0.18738873,106730.0,106720.0,0.04538]
[1762224582489,0.27141058,106730.0,106720.0,0.04538]
[1762224582883,1.60485051,106730.0,106720.0,0.007]
[1762224583071,1.60585051,106730.0,106720.0,0.007]
[1762224583905,1.59199051,106730.0,106720.0,0.003]
[1762224584110,1.06718564,106730.0,106720.0,0.01563]
[1762224584306,1.57813051,106730.0,106720.0,0.01563]
[1762224584930,0.88760529,106720.0,106710.0,0.02284017]
[1762224585330,0.88760529,106720.0,106710.0,0.03926017]
[1762224585563,0.88760529,106720.0,106710.0,0.22668402]
[1762224585692,0.88760529,106720.0,106710.0,0.03926017]
[1762224585903,0.88760529,106720.0,106710.0,0.22668402]
[1762224586296,0.700199,106720.0,106710.0,0.23068402]
[1762224586497,0.88760529,106720.0,106710.0,0.23068402]
[1762224586937,0.88760529,106720.0,106710.0,0.04326017]
[1762224588408,0.99604135,106720.0,106710.0,0.00409017]
[1762224588613,1.50698622,106720.0,106710.0,0.00409017]
[1762224588772,1.86184622,106720.0,106710.0,0.00409017]
[1762224588976,1.87933189,106720.0,106710.0,0.00409017]
[1762224589403,1.91651417,106720.0,106710.0,1e-08]
[1762224589607,0.88765799,106690.0,106680.0,0.00155285]
[1762224589811,1.49512074,106690.0,106680.0,0.0016432]
[1762224591425,1.48126074,106690.0,106680.0,0.0016432]
[1762224591835,1.48126074,106690.0,106680.0,0.0180632]
[1762224592248,0.97031587,106690.0,106680.0,0.0424832]
[1762224592827,0.97031587,106690.0,106680.0,0.0180632]
[1762224593226,1.06819772,106690.0,106680.0,0.0016432]
[1762224593433,1.59400259,106690.0,106680.0,0.0016432]
[1762224594062,1.58014259,106690.0,106680.0,0.0016432]
[1762224594677,1.59400259,106690.0,106680.0,0.0016432]
[1762224595239,1.93500259,106690.0,106680.0,0.0016432]
[1762224595484,1.94462587,106690.0,106680.0,0.0016432]
[1762224596976,1.92976587,106690.0,106680.0,0.0016432]
[1762224597157,1.417821,106690.0,106680.0,0.0016432]
[1762224597563,1.091681,106690.0,106680.0,0.0016432]
[1762224597775,0.98130312,106690.0,106680.0,0.0180632]
[1762224598361,0.99516312,106690.0,106680.0,0.0016432]
[1762224598535,1.50610799,106690.0,106680.0,0.0016432]
[1762224600928,0.98130312,106690.0,106680.0,0.0180632]
[1762224601130,0.98130312,106690.0,106680.0,0.22995976]
[1762224601364,0.700199,106690.0,106680.0,0.22995976]
[1762224601915,0.5367356,106700.0,106690.0,0.18745899]
[1762224602123,0.63131166,106700.0,106690.0,0.24053899]
[1762224602508,0.88764042,106700.0,106690.0,0.24053899]
[1762224602714,0.700199,106700.0,106690.0,0.24053899]
[1762224602913,0.28084617,106710.0,106690.0,0.24053899]
[1762224603159,0.700199,106700.0,106690.0,0.19969899]
[1762224603333,0.18744142,106700.0,106690.0,0.01224]
[1762224603535,0.18744142,106700.0,106690.0,0.02866]
[1762224603732,0.18744142,106700.0,106690.0,0.05308]
[1762224603975,0.18744142,106700.0,106690.0,0.24053899]
[1762224604157,0.700199,106700.0,106690.0,0.24053899]
[1762224604382,0.18944142,106700.0,106690.0,0.24053899]
[1762224604587,0.22807835,106700.0,106690.0,0.05308]
[1762224604965,0.18944142,106700.0,106690.0,0.24153899]
[1762224605171,0.700199,106700.0,106690.0,0.24153899]
[1762224605383,0.89713962,106720.0,106710.0,0.18741954]
[1762224605599,0.18740629,106720.0,106710.0,0.04084]
[1762224605784,0.29548514,106730.0,106710.0,0.22826385]
[1762224606017,0.18740629,106720.0,106710.0,0.22826385]
[1762224606192,0.18740629,106720.0,106710.0,0.04084]
[1762224606392,0.18940629,106720.0,106710.0,0.04084]
[1762224606614,0.002,106720.0,106710.0,0.22826385]
[1762224607826,0.18740629,106720.0,106710.0,0.22826385]
[1762224608029,0.700199,106730.0,106720.0,0.18740629]
[1762224608231,0.18760297,106740.0,106720.0,0.22824629]
[1762224608406,0.27141058,106730.0,106720.0,0.04084]
[1762224608609,0.36598664,106730.0,106710.0,0.19342385]
[1762224608835,0.18740629,106720.0,106710.0,0.22721504]
[1762224609020,0.37562301,106730.0,106710.0,0.19142385]
[1762224609245,0.700199,106720.0,106710.0,0.18742385]
[1762224609603,0.700199,106720.0,106710.0,0.22826385]
[1762224610358,0.88760529,106720.0,106710.0,0.22826385]
[1762224610565,0.18740629,106720.0,106710.0,0.22826385]
[1762224610767,0.18740629,106720.0,106710.0,0.04284]
[1762224610971,0.18740629,106720.0,106710.0,0.23026385]
[1762224611329,0.28104695,106730.0,106710.0,0.23426385]
[1762224611545,0.8972241,106730.0,106720.0,0.22824629]
[1762224611939,0.00023159,106740.0,106730.0,0.18738873]
[1762224612125,0.18760277,106740.0,106730.0,0.02866]
[1762224612527,0.89730889,106740.0,106730.0,0.02866]
[1762224612790,0.89730889,106740.0,106730.0,0.24046873]
[1762224613025,0.99188495,106740.0,106730.0,0.21604873]
[1762224613466,0.99188495,106740.0,106710.0,0.23545504]
[1762224613467,0.18739738,106730.0,106710.0,0.23545504]
[1762224613615,0.27141923,106730.0,106720.0,0.02442]
[1762224613815,0.27141923,106730.0,106720.0,0.04184]
[1762224614242,0.27141923,106730.0,106720.0,0.22924629]
[1762224614442,0.27141923,106730.0,106720.0,0.04084]
[1762224615113,0.1971105,106740.0,106720.0,0.23024629]
[1762224615324,0.27016828,106740.0,106730.0,0.23834873]
[1762224615524,0.0827971,106740.0,106730.0,0.23834873]
[1762224615726,0.00023159,106740.0,106730.0,0.23834873]
[1762224616209,0.18760277,106740.0,106730.0,0.23834873]
[1762224616421,0.19684031,106740.0,106730.0,0.05096]
[1762224616591,0.89703931,106740.0,106730.0,0.02749]
[1762224616749,0.89703931,106740.0,106730.0,0.05096]
[1762224617169,0.88880177,106740.0,106730.0,0.23834873]
[1762224617382,0.70143059,106740.0,106730.0,0.23834873]
[1762224618202,0.88880177,106740.0,106730.0,0.05096]
[1762224618459,0.88880177,106740.0,106710.0,0.37571]
[1762224618460,0.18739952,106730.0,106710.0,0.37571]
[1762224618635,1.5230427,106740.0,106730.0,0.03906]
[1762224618636,0.88880177,106740.0,106730.0,0.03906]
[1762224618984,0.88880177,106740.0,106730.0,0.22644873]
[1762224619205,0.88880177,106740.0,106730.0,0.03906]
[1762224619641,0.88780177,106740.0,106730.0,0.22644873]
[1762224620086,0.88780177,106740.0,106730.0,0.22944873]
[1762224620644,0.88780177,106740.0,106730.0,0.04206]
[1762224621418,0.88780177,106740.0,106730.0,0.22944873]
[1762224622146,0.88780177,106740.0,106730.0,0.04206]
[1762224622350,0.88780177,106740.0,106730.0,0.01859]
[1762224622812,1.39874664,106740.0,106730.0,0.04206]
[1762224623727,1.41260664,106740.0,106730.0,0.003]
[1762224623867,1.39874664,106740.0,106730.0,0.01859]
[1762224624275,1.39874664,106740.0,106730.0,0.01759]
[1762224624472,1.39874664,106740.0,106730.0,0.01559]
[1762224624709,1.39974664,106740.0,106730.0,0.01559]
[1762224625105,0.18740629,106720.0,106710.0,0.22313361]
[1762224625343,0.27142814,106720.0,106710.0,0.22313385]
[1762224625546,0.27142814,106720.0,106710.0,0.23872385]
[1762224625728,0.27142814,106720.0,106710.0,0.0513]
[1762224626144,0.08402185,106720.0,106710.0,0.0513]
[1762224626358,0.27142814,106720.0,106710.0,0.0533]
[1762224626493,0.27142814,106720.0,106710.0,0.24472385]
[1762224626913,0.08402185,106720.0,106710.0,0.24472385]
[1762224627140,0.80249225,106740.0,106720.0,0.18740629]
[1762224627339,0.80249225,106740.0,106720.0,0.21087629]
[1762224627340,0.97160958,106730.0,106720.0,0.21087629]
[1762224627771,0.97160958,106730.0,106720.0,0.22646629]
[1762224629471,0.97160958,106730.0,106720.0,0.03906]
[1762224630277,0.97160958,106730.0,106720.0,0.04006]
[1762224630551,0.97160958,106730.0,106720.0,0.22946629]
[1762224630946,1.06618564,106730.0,106720.0,0.22946629]
[1762224631164,0.87879691,106730.0,106720.0,0.22946629]
[1762224631390,1.06618564,106730.0,106720.0,0.22946629]
[1762224631574,1.06618564,106730.0,106720.0,0.04206]
[1762224631948,1.06618564,106730.0,106720.0,0.22946629]
[1762224632421,0.97160958,106730.0,106720.0,0.22946629]
[1762224633141,0.97160958,106730.0,106720.0,0.04206]
[1762224634002,0.97160958,106730.0,106720.0,0.22946629]
[1762224634398,0.97160958,106730.0,106720.0,0.04206]
[1762224634785,0.78422085,106730.0,106720.0,0.22946629]
[1762224635020,0.97160958,106730.0,106720.0,0.04206]
[1762224635214,0.97160958,106730.0,106720.0,0.05352]
[1762224637045,0.700199,106730.0,106720.0,0.24092629]
[1762224638418,0.88758773,106730.0,106720.0,0.24092629]
[1762224638823,0.88758773,106730.0,106720.0,0.05352]
[1762224639541,0.88758773,106730.0,106720.0,0.03005]
[1762224639542,1.27469253,106730.0,106720.0,0.03005]
[1762224639745,1.35046344,106730.0,106720.0,0.003]
[1762224639946,1.35146344,106730.0,106720.0,0.003]
[1762224640151,1.3689555,106730.0,106720.0,0.003]
[1762224640359,1.71770146,106730.0,106720.0,0.003]
[1762224640564,1.71870146,106730.0,106720.0,0.003]
[1762224641204,1.7099555,106730.0,106720.0,0.003]
[1762224641623,1.7099555,106730.0,106720.0,0.001]
[1762224641849,2.0899503,106730.0,106720.0,0.001]
[1762224642057,0.18744142,106700.0,106690.0,0.0349]
[1762224642266,1.35165707,106700.0,106690.0,0.01233035]
[1762224642520,0.81194085,106700.0,106690.0,0.01525035]
[1762224642721,0.97166227,106700.0,106690.0,0.22536934]
[1762224643507,0.97166227,106700.0,106690.0,0.22836934]
[1762224643914,0.78422085,106700.0,106690.0,0.22836934]
[1762224644930,0.08402185,106700.0,106690.0,0.22836934]
[1762224645298,0.27146327,106700.0,106690.0,0.22836934]
[1762224645900,0.08402185,106700.0,106690.0,0.22836934]
[1762224646237,0.27146327,106700.0,106690.0,0.22836934]
[1762224647668,0.08402185,106700.0,106690.0,0.22836934]
[1762224648779,0.700199,106710.0,106700.0,0.18743501]
[1762224648994,0.18742385,106710.0,106700.0,0.22655501]
[1762224649452,0.700199,106710.0,106700.0,0.22655501]
[1762224649919,0.88762285,106710.0,106700.0,0.22655501]
[1762224650138,0.18842385,106710.0,106700.0,0.22655501]
[1762224650566,0.001,106710.0,106700.0,0.22655501]
[1762224653422,0.18842385,106710.0,106700.0,0.22655501]
[1762224655126,0.001,106710.0,106700.0,0.22655501]
[1762224655341,0.001,106710.0,106700.0,0.23828501]
[1762224656429,0.27143067,106720.0,106710.0,0.18742385]
[1762224656621,0.27143067,106720.0,106710.0,0.23827385]
[1762224657793,0.67239547,106720.0,106710.0,0.02779]
[1762224658009,1.37259447,106720.0,106710.0,0.01573]
[1762224658219,1.35873447,106720.0,106710.0,0.24227385]
[1762224658635,1.35873447,106720.0,106710.0,0.24027385]
[1762224658849,1.35873447,106720.0,106710.0,0.23827385]
[1762224659065,1.35873447,106720.0,106710.0,0.23927385]
[1762224659270,0.97873714,106720.0,106710.0,0.23927385]
[1762224659473,0.97873714,106720.0,106710.0,0.05185]
[1762224659677,0.97873714,106720.0,106710.0,0.23927385]
[1762224660017,0.97873714,106720.0,106710.0,0.24127385]
[1762224662158,0.97873714,106720.0,106710.0,0.05385]
[1762224662592,1.35873194,106720.0,106710.0,0.05385]
[1762224663567,1.35873194,106720.0,106710.0,0.24127385]
[1762224663778,0.78422085,106720.0,106710.0,0.24127385]
[1762224664017,0.97162714,106720.0,106710.0,0.24127385]
[1762224664886,0.78422085,106720.0,106710.0,0.24127385]